bitfinex-derivatives/quotes_ETHF0:USTF0_20241026
["timestamp","ask_amount","ask_price","bid_price","bid_amount"]
[1729980050532,3.83289056,2490.2,2490.1,1.2869]
[1729980050834,0.40205,2490.1,2489.8,0.40209]
[1729980051035,0.40206,2490.0,2489.9,1.2739]
[1729980051730,1.70549028,2490.0,2489.9,1.2739]
[1729980095355,3.2078,2490.1,2489.9,1.2739]
[1729980095559,0.824,2490.1,2490.0,0.40206]
[1729980095764,0.824,2490.1,2490.0,0.52780098]
[1729980095765,3.43086056,2490.1,2490.0,0.52780098]
[1729980096162,3.43086056,2490.1,2490.0,0.12574098]
[1729980096357,3.43086056,2490.1,2489.9,1.67597]
[1729980096665,2.12743028,2490.0,2489.9,1.67597]
[1729980096864,2.12743028,2490.0,2489.9,1.80171054]
[1729980097865,2.12743028,2490.0,2489.9,1.39964054]
[1729980098064,2.12743028,2490.0,2489.9,1.80172054]
[1729980099362,2.52949028,2490.0,2489.9,1.39964054]
[1729980106265,2.52949028,2490.0,2489.9,1.39964384]
[1729980108473,2.52949028,2490.0,2489.9,1.2739]
[1729980132384,1.22606,2490.0,2489.9,1.2739]
[1729980132582,2.52949028,2490.0,2489.9,1.2739]
[1729980135089,1.22606,2490.0,2489.9,1.2739]
[1729980135490,3.60984,2490.2,2490.0,0.40206]
[1729980135694,1.00494,2490.6,2490.0,0.40206]
[1729980135695,0.824,2490.1,2490.0,0.40206]
[1729980135888,3.2078,2490.8,2490.1,1.00513]
[1729980136094,0.824,2490.7,2490.6,0.40195]
[1729980136288,0.4019,2491.1,2490.8,0.40192]
[1729980136486,3.6237,2491.2,2491.0,0.4019]
[1729980136487,4.0318,2491.2,2491.0,0.4019]
[1729980136792,4.0318,2491.2,2490.9,0.8426]
[1729980136793,1.30343028,2491.1,2490.9,0.8426]
[1729980136997,4.0318,2491.2,2491.1,0.40189]
[1729980137188,5.33523028,2491.2,2491.1,0.52757777]
[1729980137392,4.51123028,2491.2,2491.1,0.40189]
[1729980138412,0.40178,2491.8,2491.1,5.31783028]
[1729980138616,1.30343028,2491.4,2491.3,3.60965]
[1729980138808,0.62923028,2491.4,2491.3,3.60965]
[1729980139005,0.62923028,2491.4,2491.3,7.62325]
[1729980139206,0.62923028,2491.4,2491.3,7.2214]
[1729980139507,0.40186,2491.3,2491.1,0.40188]
[1729980139704,1.30343028,2491.2,2491.1,0.40188]
[1729980140511,1.30343028,2491.2,2491.1,4.41628]
[1729980141513,1.30343028,2491.2,2491.1,0.40188]
[1729980141700,1.30343028,2491.2,2491.1,4.41628]
[1729980141908,1.30343028,2491.2,2491.1,0.40188]
[1729980146107,1.30343028,2491.2,2491.1,3.60968]
[1729980149718,0.823,2491.6,2491.2,1.00468]
[1729980149918,3.2078,2491.8,2491.7,0.40179]
[1729980151115,4.51123028,2491.8,2491.7,0.40179]
[1729980152520,4.51123028,2491.8,2491.7,4.41539]
[1729980152722,3.2078,2491.8,2491.7,5.71882028]
[1729980153522,1.30343028,2492.3,2491.7,8.52483028]
[1729980153823,1.70513028,2492.3,2492.2,0.40171]
[1729980154218,1.30343028,2492.3,2492.2,0.40171]
[1729980154421,1.70512028,2492.3,2492.2,0.40171]
[1729980154724,1.30343028,2492.3,2492.2,0.40171]
[1729980154915,1.70512028,2492.3,2492.2,0.40171]
[1729980155320,1.30343028,2492.3,2492.2,0.40171]
[1729980155722,0.40165,2492.6,2492.5,0.40166]
[1729980156029,1.70509028,2492.6,2492.4,0.40166]
[1729980156331,1.30343028,2492.5,2492.4,0.40166]
[1729980157121,1.70509028,2492.5,2492.4,0.40166]
[1729980157316,1.30343028,2492.5,2492.4,0.40166]
[1729980159026,1.70509028,2492.5,2492.4,0.40166]
[1729980160522,1.70509028,2492.5,2492.4,4.41366]
[1729980161024,1.30343028,2492.5,2492.1,0.4186]
[1729980161227,1.6652,2492.7,2492.1,0.4186]
[1729980161228,1.70514028,2492.2,2492.1,0.4186]
[1729980162728,1.70514028,2492.2,2492.1,0.82032]
[1729980165533,1.70514028,2492.2,2492.1,0.40172]
[1729980165731,2.13194028,2492.2,2492.1,0.40172]
[1729980166233,2.57425028,2492.2,2492.0,1.26023]
[1729980166628,2.57425028,2492.2,2492.1,0.40172]
[1729980168838,1.27082,2492.2,2492.1,0.40172]
[1729980169436,0.8691,2492.2,2492.0,0.8585]
[1729980169740,1.27081,2492.2,2492.1,0.40172]
[1729980169931,0.40172,2492.1,2492.0,0.82803]
[1729980170530,0.40172,2492.1,2491.9,3.2078]
[1729980170531,0.40176,2491.9,2491.8,0.40176]
[1729980170832,0.40177,2491.8,2491.7,0.82098]
[1729980171032,0.81177,2491.8,2491.7,0.82098]
[1729980171434,0.41,2491.8,2491.7,0.82098]
[1729980174242,0.40179,2491.7,2491.6,3.60959]
[1729980174726,1.71343028,2491.8,2491.6,7.2214]
[1729980174929,1.71343028,2491.8,2491.7,0.40179]
[1729980174930,2.11521028,2491.8,2491.7,0.40179]
[1729980175331,1.71343028,2491.8,2491.6,3.2078]
[1729980175534,0.40179,2491.7,2491.6,3.6096]
[1729980175933,0.40179,2491.7,2491.6,7.6232]
[1729980176335,2.11521028,2491.8,2491.7,0.40179]
[1729980178442,2.97001028,2491.8,2491.7,0.40179]
[1729980181443,2.97001028,2491.8,2491.6,3.60959]
[1729980181444,0.40179,2491.7,2491.6,3.60959]
[1729980181942,1.70522028,2491.7,2491.6,3.60959]
[1729980182342,1.70522028,2491.7,2491.6,0.40179]
[1729980182935,1.2648,2491.8,2491.5,2.56753028]
[1729980183135,1.2648,2491.8,2491.7,0.40179]
[1729980183136,1.66659,2491.8,2491.7,0.40179]
[1729980189746,3.2078,2492.5,2491.7,5.31703028]
[1729980189950,1.70511028,2492.4,2492.3,0.40168]
[1729980190351,2.52811028,2492.4,2492.3,0.83008]
[1729980190853,2.52811028,2492.4,2492.3,0.83009]
[1729980192156,7.44186056,2492.4,2492.0,0.4384]
[1729980192353,7.44186056,2492.4,2491.7,0.4154]
[1729980192354,1.30343028,2492.1,2491.7,0.4154]
[1729980192551,1.70520028,2491.8,2491.7,0.4154]
[1729980194162,1.70520028,2491.8,2491.7,0.81719]
[1729980194360,0.40177,2491.8,2491.7,0.81719]
[1729980195256,1.22477,2491.9,2491.8,0.40177]
[1729980195654,0.40177,2491.8,2491.7,0.81718]
[1729980200060,1.22865,2492.6,2492.5,0.40166]
[1729980200254,1.22865,2492.6,2491.9,3.2078]
[1729980200255,0.827,2492.6,2491.9,3.2078]
[1729980200454,1.22865,2492.6,2492.5,0.40166]
[1729980200657,0.82271,2492.9,2492.3,3.82715085]
[1729980200960,0.82271,2492.9,2492.6,0.40163]
[1729980200961,0.4211,2492.9,2492.6,0.40163]
[1729980201152,0.4211,2492.9,2492.5,3.2078]
[1729980201349,0.40163,2492.7,2492.6,0.40164]
[1729980201556,0.80892,2492.8,2492.6,0.40164]
[1729980201758,0.4073,2492.8,2492.5,3.2078]
[1729980201959,0.40163,2492.7,2492.6,0.40164]
[1729980202160,0.4073,2492.8,2492.5,3.60945]
[1729980202161,0.40164,2492.6,2492.5,3.60945]
[1729980202562,0.40164,2492.6,2492.5,3.60946]
[1729980202760,0.40164,2492.7,2492.5,3.60946]
[1729980203663,0.40164,2492.6,2492.5,3.60946]
[1729980204271,0.40164,2492.6,2492.5,0.40166]
[1729980204965,0.40164,2492.7,2492.6,0.40164]
[1729980205279,0.40165,2492.6,2492.5,0.40165]
[1729980205569,1.2343,2492.8,2492.5,0.40165]
[1729980205772,0.40164,2492.7,2492.5,0.40165]
[1729980206864,0.40164,2492.6,2492.5,0.40165]
[1729980207061,0.40166,2492.5,2492.4,3.2078]
[1729980207261,0.40166,2492.5,2492.4,3.60948]
[1729980207466,0.40171,2492.2,2492.1,0.40172]
[1729980207665,0.80878,2492.4,2492.3,0.40169]
[1729980207864,1.2341,2492.4,2492.2,0.40169]
[1729980208062,0.40169,2492.3,2492.2,0.40169]
[1729980208867,0.80989,2492.3,2492.2,0.40169]
[1729980209883,0.40172,2492.2,2492.1,0.40172]
[1729980211872,0.40172,2492.1,2491.9,0.40175]
[1729980212077,6.86961085,2492.3,2491.8,3.2078]
[1729980212276,6.86961085,2492.3,2491.6,0.8368]
[1729980212277,0.40179,2491.8,2491.7,0.40179]
[1729980212476,0.4153,2492.0,2491.9,0.40176]
[1729980212679,4.0467,2492.3,2492.0,0.40173]
[1729980212879,6.03071085,2492.7,2491.8,2.82291085]
[1729980213087,0.40163,2492.7,2492.6,0.40164]
[1729980213280,0.40169,2492.3,2492.2,0.40171]
[1729980213581,0.40171,2492.3,2492.0,0.4491]
[1729980213886,0.40171,2492.3,2492.2,0.40171]
[1729980214281,0.81701,2492.3,2492.2,0.40171]
[1729980214478,0.4153,2492.3,2492.2,0.40171]
[1729980214684,0.827,2492.4,2492.3,0.40169]
[1729980214882,0.40168,2492.4,2492.3,0.40169]
[1729980215080,0.827,2492.6,2492.1,0.4135]
[1729980215383,0.40166,2492.5,2492.1,0.4135]
[1729980215584,0.827,2492.6,2492.1,0.4135]
[1729980215786,1.22865,2492.6,2492.5,0.40166]
[1729980216475,0.40167,2492.5,2492.4,0.40167]
[1729980216677,4.65404085,2492.6,2492.1,0.4135]
[1729980216882,0.432,2492.4,2492.1,0.4135]
[1729980217081,3.64991085,2492.6,2492.3,0.40169]
[1729980217082,0.40167,2492.5,2492.3,0.40169]
[1729980217284,0.40168,2492.4,2492.3,0.40169]
[1729980217682,4.07181085,2492.6,2492.1,0.4135]
[1729980217990,0.40168,2492.4,2492.3,0.40169]
[1729980218192,0.40169,2492.4,2492.3,0.40169]
[1729980218485,0.40171,2492.2,2492.1,0.4135]
[1729980218689,1.00416,2492.5,2492.0,0.85084]
[1729980218690,0.40172,2492.1,2492.0,0.85084]
[1729980218884,0.827,2492.1,2491.9,0.40176]
[1729980219085,0.4099,2492.3,2491.9,3.2078]
[1729980219281,0.81159,2492.3,2492.2,0.40171]
[1729980219678,0.4099,2492.3,2492.0,0.4402]
[1729980219893,0.8116,2492.3,2492.2,0.40171]
[1729980220390,1.6386,2492.3,2492.2,0.40171]
[1729980221689,1.6386,2492.3,2492.0,0.40174]
[1729980221690,0.40171,2492.2,2492.0,0.40174]
[1729980221894,0.40171,2492.2,2491.7,0.4282]
[1729980221895,1.2369,2492.3,2491.9,0.4402]
[1729980222087,1.2369,2492.3,2491.7,0.8458]
[1729980222088,0.40177,2491.8,2491.7,0.4282]
[1729980222488,0.40177,2491.8,2491.7,0.82999]
[1729980222689,1.22877,2491.8,2491.7,0.82999]
[1729980224295,1.22877,2491.8,2491.7,0.4282]
[1729980224490,3.64991085,2491.8,2491.4,0.4402]
[1729980224684,0.42,2491.7,2491.4,0.8684]
[1729980224886,0.40181,2491.6,2491.5,0.40181]
[1729980225295,0.40181,2491.6,2491.5,4.41541]
[1729980226895,3.2078,2491.9,2491.5,4.0136]
[1729980227189,3.2078,2491.9,2491.4,0.8684]
[1729980227190,0.842,2492.2,2492.1,0.40172]
[1729980227988,1.24368,2492.4,2492.3,0.40168]
[1729980228197,1.24368,2492.4,2491.9,1.42867]
[1729980228198,0.40172,2492.1,2491.9,0.4243]
[1729980228387,0.40172,2492.1,2492.0,0.40174]
[1729980228592,0.4181,2492.3,2491.9,0.4243]
[1729980228794,0.40174,2492.0,2491.9,0.4243]
[1729980228995,3.23091085,2492.2,2491.7,3.2078]
[1729980229293,3.23091085,2492.2,2491.6,0.4159]
[1729980229294,0.4181,2491.9,2491.6,0.4159]
[1729980229497,0.4181,2491.9,2491.8,0.40177]
[1729980229792,0.81987,2491.9,2491.8,0.40177]
[1729980230590,0.4181,2491.9,2491.8,0.40177]
[1729980232791,1.24375,2492.0,2491.6,0.4159]
[1729980232990,0.40176,2491.9,2491.8,0.40177]
[1729980234191,0.40179,2491.8,2491.6,0.4159]
[1729980234401,0.842,2492.0,2491.6,0.4159]
[1729980234597,0.40176,2491.9,2491.7,0.40178]
[1729980235301,0.842,2492.0,2491.7,0.40178]
[1729980235505,0.40177,2491.8,2491.7,0.40178]
[1729980236702,1.24375,2492.0,2491.9,0.40176]
[1729980240406,1.24375,2492.0,2491.6,3.6237]
[1729980240407,0.40177,2491.9,2491.8,0.40176]
[1729980240805,0.40177,2491.9,2491.8,0.40177]
[1729980241003,3.2078,2492.7,2491.8,4.0128]
[1729980241203,0.40167,2492.5,2492.4,0.40167]
[1729980241604,1.67996,2492.6,2492.4,0.40167]
[1729980241815,1.67996,2492.6,2492.1,0.8516]
[1729980241816,5.2903,2492.6,2492.1,0.8516]
[1729980242005,2.82291085,2492.5,2492.1,0.8516]
[1729980242205,2.82291085,2492.5,2492.1,0.82532]
[1729980242206,0.4094,2492.4,2492.1,0.82532]
[1729980242400,0.8109,2492.3,2492.1,0.82532]
[1729980242601,0.4092,2492.3,2491.9,3.2078]
[1729980242804,0.40173,2492.1,2492.0,0.40174]
[1729980243104,0.842,2492.1,2491.8,0.40177]
[1729980243407,0.40176,2491.9,2491.8,0.40177]
[1729980243608,0.842,2492.1,2491.8,0.40177]
[1729980243810,0.40175,2492.0,2491.8,0.40177]
[1729980244012,0.40175,2492.0,2491.9,0.40176]
[1729980244307,0.842,2492.1,2491.7,1.2817]
[1729980244508,3.23211085,2492.3,2491.7,1.2817]
[1729980244509,0.4092,2492.3,2492.2,0.40171]
[1729980244706,0.842,2492.3,2492.2,0.40171]
[1729980244910,3.2078,2492.4,2492.3,0.40169]
[1729980245113,4.0498,2492.4,2492.3,0.40169]
[1729980245308,3.2078,2492.4,2492.3,4.41369]
[1729980245502,3.65571085,2492.7,2492.3,7.2198]
[1729980245503,4.09001085,2492.7,2492.3,7.2198]
[1729980245703,0.40169,2492.4,2492.3,0.40169]
[1729980245910,0.4017,2492.3,2492.2,0.40171]
[1729980246210,2.82291085,2492.5,2492.1,0.8418]
[1729980246401,0.40169,2492.4,2492.3,0.40168]
[1729980246605,2.82291085,2492.5,2492.1,0.8418]
[1729980246911,0.40168,2492.4,2492.3,0.40168]
[1729980247210,0.40168,2492.4,2492.1,0.8418]
[1729980247410,0.40168,2492.4,2492.2,0.4017]
[1729980247713,0.40168,2492.4,2492.3,0.40169]
[1729980247914,2.82291085,2492.5,2492.1,0.8418]
[1729980248110,2.82291085,2492.5,2492.2,0.4017]
[1729980248309,0.40169,2492.3,2492.2,0.4017]
[1729980250521,2.82291085,2492.5,2492.1,0.8418]
[1729980250821,0.4017,2492.3,2492.2,0.40171]
[1729980251018,2.82291085,2492.5,2492.2,0.40171]
[1729980251317,0.40169,2492.3,2492.2,0.40171]
[1729980253215,0.40169,2492.4,2492.2,0.40171]
[1729980253416,0.40168,2492.4,2492.2,0.40171]
[1729980253720,0.40169,2492.3,2492.2,0.40171]
[1729980254024,0.40171,2492.2,2492.1,1.24352]
[1729980254321,2.82291085,2492.5,2492.1,0.8418]
[1729980254618,0.40171,2492.3,2492.2,0.40171]
[1729980254819,0.40171,2492.3,2492.1,0.8418]
[1729980255021,0.40171,2492.3,2492.1,1.24351]
[1729980255419,0.40171,2492.2,2492.1,1.24351]
[1729980255621,0.40171,2492.2,2492.1,0.83182]
[1729980255816,2.82291085,2492.5,2492.1,0.4301]
[1729980256018,0.4322,2492.6,2492.5,0.40166]
[1729980256222,0.846,2492.6,2492.5,0.40166]
[1729980256618,3.6329,2492.7,2492.6,0.40164]
[1729980256619,3.2078,2492.7,2492.6,0.40164]
[1729980256926,0.846,2492.7,2492.6,0.40164]
[1729980257928,0.846,2492.7,2492.6,4.41364]
[1729980258923,0.40168,2492.4,2492.3,3.6498]
[1729980259122,0.40168,2492.4,2492.1,0.8525]
[1729980259123,2.82291085,2492.5,2492.1,0.8525]
[1729980259319,0.40171,2492.2,2492.1,0.8525]
[1729980259521,0.40171,2492.2,2492.1,1.25422]
[1729980260828,0.4017,2492.3,2492.2,0.4017]
[1729980261424,0.846,2492.4,2492.1,0.8525]
[1729980261724,0.4017,2492.3,2492.2,0.40171]
[1729980262026,0.40171,2492.2,2492.1,0.4224]
[1729980262324,0.40172,2492.1,2492.0,3.60953]
[1729980264228,0.4069,2492.2,2492.0,3.2078]
[1729980264523,0.80862,2492.2,2492.1,0.40172]
[1729980266021,0.4069,2492.2,2492.1,0.40172]
[1729980266217,0.846,2492.4,2492.3,0.40168]
[1729980266418,1.24768,2492.4,2492.3,0.40168]
[1729980266837,1.24768,2492.4,2492.3,1.27388]
[1729980267129,0.40168,2492.4,2492.3,0.8722]
[1729980267325,0.40169,2492.3,2492.1,0.40172]
[1729980267521,0.82221,2492.2,2492.1,0.40172]
[1729980268426,3.66891085,2492.5,2491.9,1.2447]
[1729980268730,0.40169,2492.4,2492.3,0.40169]
[1729980268930,0.40167,2492.5,2492.3,0.40169]
[1729980269126,1.24765,2492.6,2492.5,0.40165]
[1729980269834,0.846,2492.6,2492.5,0.40165]
[1729980270024,1.24764,2492.6,2492.5,0.40165]
[1729980273534,0.40166,2492.5,2492.4,0.40166]
[1729980274029,6.83491085,2492.5,2492.2,3.2078]
[1729980274232,6.83491085,2492.5,2491.9,4.4783]
[1729980274233,1.3072,2492.4,2491.9,4.4783]
[1729980274425,2.31141,2492.4,2491.9,4.44335]
[1729980274625,0.40174,2492.0,2491.9,4.44335]
[1729980275032,0.846,2492.1,2491.9,4.0416]
[1729980275227,0.4374,2492.0,2491.9,4.44336]
[1729980277424,0.4374,2492.0,2491.9,1.23556]
[1729980279631,0.83914,2492.0,2491.9,0.40176]
[1729980279937,1.25634,2492.0,2491.9,0.40176]
[1729980281647,0.8546,2492.0,2491.8,3.2078]
[1729980281843,0.8546,2492.0,2491.9,0.40176]
[1729980281844,1.25635,2492.0,2491.9,0.40176]
[1729980282045,1.67155,2492.0,2491.9,0.40176]
[1729980282447,0.40176,2491.9,2491.8,3.60956]
[1729980283554,0.40176,2491.9,2491.8,0.40176]
[1729980283853,1.67155,2492.0,2491.9,0.40176]
[1729980284059,1.2698,2492.0,2491.7,1.2965]
[1729980284353,0.40176,2491.9,2491.8,0.40176]
[1729980285647,1.2698,2492.0,2491.7,1.2965]
[1729980285850,1.67155,2492.0,2491.9,0.40176]
[1729980286054,1.2698,2492.0,2491.7,1.2965]
[1729980286353,1.30280529,2491.8,2491.7,1.2965]
[1729980286555,1.30280529,2491.8,2491.7,1.69828]
[1729980286852,1.70456529,2491.9,2491.8,0.40177]
[1729980291854,1.2698,2492.0,2491.7,1.2965]
[1729980292050,1.00418,2492.5,2491.9,4.51060529]
[1729980292051,1.30280529,2492.5,2491.9,4.51060529]
[1729980292253,1.70448529,2492.4,2492.3,0.40168]
[1729980293252,2.55748529,2492.4,2492.3,0.40168]
[1729980293560,0.40173,2492.1,2492.0,0.40173]
[1729980293754,1.70453529,2492.1,2492.0,0.40173]
[1729980294260,0.40173,2492.1,2492.0,0.40173]
[1729980297459,0.40175,2492.0,2491.9,0.40175]
[1729980297655,3.23331844,2492.2,2491.8,0.4367]
[1729980297861,4.23760844,2492.2,2491.6,0.8424]
[1729980298065,0.40176,2491.9,2491.8,0.40176]
[1729980298361,1.25476,2491.9,2491.8,0.40176]
[1729980299762,0.853,2491.9,2491.8,0.40176]
[1729980300857,1.25476,2491.9,2491.8,0.40176]
[1729980301765,0.853,2491.9,2491.8,0.40176]
[1729980305463,1.25476,2491.9,2491.8,0.40176]
[1729980307268,0.853,2491.9,2491.8,0.40176]
[1729980311570,0.4107,2492.2,2491.7,0.428]
[1729980311771,0.81242,2492.2,2492.1,0.40172]
[1729980311974,1.66542,2492.2,2492.1,0.40172]
[1729980312969,0.40173,2492.1,2492.0,0.40173]
[1729980313868,1.2637,2492.2,2491.7,0.428]
[1729980314069,2.82261844,2492.4,2492.3,0.40169]
[1729980314070,3.22430844,2492.4,2492.3,0.40169]
[1729980314270,2.55721966,2492.4,2492.3,0.40169]
[1729980314966,2.15552966,2492.4,2492.0,1.2962]
[1729980315170,1.30252966,2492.2,2492.1,0.40172]
[1729980316173,1.30252966,2492.2,2492.1,0.52734763]
[1729980317575,1.70423966,2492.2,2492.1,0.12562763]
[1729980317880,1.70423966,2492.2,2492.1,0.40172]
[1729980318186,2.53993966,2492.2,2492.1,0.40172]
[1729980319682,2.53993966,2492.2,2492.1,0.52735219]
[1729980321781,2.53993966,2492.2,2492.1,0.12563219]
[1729980322079,0.40172,2492.1,2492.0,0.40173]
[1729980322386,1.70424966,2492.1,2492.0,0.52736353]
[1729980325783,2.55224966,2492.1,2492.0,0.52736353]
[1729980325983,2.15052966,2492.1,2492.0,0.52736353]
[1729980326190,2.55224966,2492.1,2492.0,0.52736353]
[1729980326688,2.55224966,2492.1,2492.0,0.52736424]
[1729980327392,2.55224966,2492.1,2492.0,0.52736426]
[1729980330587,2.15052966,2492.1,2492.0,0.52736426]
[1729980336883,2.55224966,2492.1,2492.0,0.52736426]
[1729980337092,2.55224966,2492.1,2492.0,0.40174]
[1729980338290,0.40176,2492.0,2491.9,0.40175]
[1729980338499,2.14118966,2492.0,2491.9,0.52739231]
[1729980341198,2.14118966,2492.0,2491.9,0.40175]
[1729980341402,2.14118966,2492.0,2491.9,0.52739249]
[1729980347693,2.14118966,2492.0,2491.9,0.12564249]
[1729980347900,2.14118966,2492.0,2491.9,0.52740249]
[1729980349098,2.14118966,2492.0,2491.9,0.12564249]
[1729980349500,0.40176,2491.9,2491.8,0.84637]
[1729980349697,0.40176,2491.9,2491.8,0.57024769]
[1729980349897,0.40176,2491.9,2491.8,0.97201769]
[1729980350303,0.40176,2491.9,2491.6,0.4217]
[1729980350304,0.40179,2491.7,2491.6,0.4217]
[1729980350505,1.70431966,2491.7,2491.6,0.94916591]
[1729980350718,1.70431966,2491.7,2491.6,0.4217]
[1729980350906,2.15321966,2491.7,2491.6,0.4217]
[1729980352313,1.00452,2491.6,2490.8,1.05348867]
[1729980352616,0.40193,2490.8,2490.7,0.4219]
[1729980352925,0.40193,2490.8,2490.6,1.25587]
[1729980352926,2.55445966,2490.8,2490.6,1.25587]
[1729980353122,1.30252966,2490.7,2490.6,1.25587]
[1729980353318,1.70447966,2490.7,2490.6,1.25587]
[1729980353516,1.30252966,2490.7,2490.6,1.25587]
[1729980354627,1.30252966,2490.7,2490.6,0.8539]
[1729980354921,1.70447966,2490.7,2490.6,1.25587]
[1729980355425,3.2078,2491.0,2490.6,0.8539]
[1729980355619,0.85,2491.0,2490.9,0.40192]
[1729980355819,1.30252966,2491.0,2490.9,3.60972]
[1729980356014,1.30252966,2491.0,2490.9,7.62412]
[1729980357921,1.30252966,2491.0,2490.9,3.2078]
[1729980358226,1.70442966,2491.0,2490.9,3.2078]
[1729980359224,1.70442966,2491.0,2490.9,3.60972]
[1729980360124,1.30252966,2491.0,2490.9,3.60972]
[1729980360325,1.70442966,2491.0,2490.9,3.60972]
[1729980360833,1.70442966,2491.0,2490.9,0.40192]
[1729980361135,1.30252966,2491.0,2490.9,0.40192]
[1729980361323,1.70442966,2491.0,2490.9,0.40192]
[1729980362931,0.40192,2490.9,2490.8,4.04363]
[1729980363124,1.30252966,2490.9,2490.8,4.04363]
[1729980365826,2.15252966,2491.0,2490.9,0.40192]
[1729980366022,2.55442966,2491.0,2490.9,0.40192]
[1729980366531,3.2078,2491.4,2490.9,6.32172966]
[1729980366532,0.40184,2491.4,2490.9,6.32172966]
[1729980366719,1.30252966,2491.3,2491.2,0.40187]
[1729980367526,0.40183,2491.5,2491.2,0.40187]
[1729980367527,3.2078,2491.8,2491.3,1.00464]
[1729980367732,3.2078,2491.8,2491.4,4.02983]
[1729980367733,0.40182,2491.5,2491.4,4.02983]
[1729980367922,1.30252966,2491.8,2491.4,3.628]
[1729980368127,0.40179,2491.7,2491.6,0.4018]
[1729980368333,0.8433,2492.0,2491.5,0.4334]
[1729980368521,0.4018,2491.7,2491.5,0.4334]
[1729980368725,0.4018,2491.7,2491.6,0.40181]
[1729980369137,1.70432966,2491.7,2491.6,0.40181]
[1729980370239,1.30252966,2491.7,2491.6,0.40181]
[1729980391248,1.70431966,2491.7,2491.6,0.40181]
[1729980391449,0.40181,2491.6,2491.5,4.46951]
[1729980391640,2.10883966,2491.6,2491.5,4.46951]
[1729980392144,1.70702966,2491.6,2491.5,4.0677]
[1729980392448,0.40185,2491.4,2491.3,0.40184]
[1729980392752,1.70437966,2491.4,2491.3,0.40184]
[1729980394255,0.40185,2491.3,2491.2,3.60966]
[1729980394455,0.40187,2491.2,2491.1,0.40188]
[1729980394749,1.73642966,2491.2,2491.1,0.40188]
[1729980395440,2.13829966,2491.2,2491.1,0.40188]
[1729980395845,1.73642966,2491.2,2491.1,0.40188]
[1729980396350,2.13829966,2491.2,2491.1,0.40188]
[1729980396852,1.73642966,2491.2,2491.1,0.40188]
[1729980397852,2.13829966,2491.2,2491.1,0.40188]
[1729980398152,1.73642966,2491.2,2491.1,0.40188]
[1729980401142,3.2078,2491.8,2491.1,5.31692966]
[1729980401346,1.70434966,2491.6,2491.5,0.40181]
[1729980401748,1.70434966,2491.6,2491.5,0.81661]
[1729980402152,1.70434966,2491.6,2491.5,0.4148]
[1729980402546,1.70434966,2491.6,2491.4,0.40183]
[1729980402547,2.14952966,2491.6,2491.4,0.40183]
[1729980402745,1.70434966,2491.5,2491.4,0.40183]
[1729980403162,2.55964966,2491.5,2491.4,0.40183]
[1729980404451,0.40184,2491.4,2491.3,0.40185]
[1729980404653,2.11326966,2491.4,2491.3,0.40185]
[1729980404960,1.71142966,2491.4,2491.2,3.2078]
[1729980405254,1.70437966,2491.3,2491.2,3.60966]
[1729980405448,1.70437966,2491.3,2491.2,3.2078]
[1729980406248,1.70437966,2491.3,2491.2,3.60967]
[1729980407457,1.70437966,2491.3,2491.2,0.40187]
[1729980409257,1.30252966,2491.3,2491.1,4.0519]
[1729980409461,0.40187,2491.2,2491.1,0.40188]
[1729980409854,0.40193,2490.8,2490.7,1.27175]
[1729980410062,0.40198,2490.5,2490.4,0.40199]
[1729980410366,1.30252966,2490.5,2490.4,0.40199]
[1729980410556,1.30252966,2490.5,2490.3,2.57363966]
[1729980410767,0.8493,2490.7,2490.3,0.8691]
[1729980410768,1.70452966,2490.4,2490.3,0.8691]
[1729980411264,0.40202,2490.3,2490.2,0.40202]
[1729980411468,2.12814966,2490.3,2490.2,0.40202]
[1729980411657,1.72612966,2490.3,2490.2,0.40202]
[1729980413065,2.12813966,2490.3,2490.2,0.40202]
[1729980413661,2.12813966,2490.3,2490.1,1.72742966]
[1729980413662,0.40203,2490.2,2490.1,0.4249]
[1729980413870,1.70455966,2490.2,2490.1,0.82694]
[1729980414067,1.70455966,2490.2,2490.1,0.4249]
[1729980414371,1.70455966,2490.2,2490.0,4.91237966]
[1729980414561,1.70455966,2490.2,2490.0,3.60985]
[1729980414765,1.30252966,2490.1,2490.0,3.2078]
[1729980414966,1.70457966,2490.1,2490.0,3.2078]
[1729980415265,0.40206,2490.0,2489.9,0.84628]
[1729980415480,1.70458966,2490.0,2489.9,0.84628]
[1729980416462,1.70458966,2490.0,2489.9,0.4442]
[1729980416664,1.30252966,2490.0,2489.8,0.40209]
[1729980416864,1.70460966,2489.9,2489.8,0.40209]
[1729980417860,1.30252966,2489.9,2489.8,0.40209]
[1729980420470,1.70460966,2489.9,2489.8,0.40209]
[1729980420766,1.30252966,2489.9,2489.8,0.40209]
[1729980421774,0.4021,2489.8,2489.7,3.6357]
[1729980421973,0.40211,2489.7,2489.6,0.444]
[1729980422268,1.70463966,2489.7,2489.6,0.444]
[1729980422470,1.70463966,2489.7,2489.4,3.2078]
[1729980422471,1.30252966,2489.7,2489.4,3.2078]
[1729980422673,1.30252966,2489.5,2489.4,4.91248966]
[1729980425565,1.2772,2489.8,2489.7,0.40211]
[1729980425566,0.4202,2489.8,2489.7,0.40211]
[1729980425768,2.14052966,2489.9,2489.8,0.40208]
[1729980425967,0.4021,2489.8,2489.7,0.4021]
[1729980426177,1.30252966,2489.8,2489.7,0.4021]
[1729980426766,1.70462966,2489.8,2489.7,0.4021]
[1729980427567,1.30252966,2489.8,2489.7,0.4021]
[1729980428769,0.838,2489.9,2489.8,0.4021]
[1729980428974,2.54260966,2489.9,2489.8,0.4021]
[1729980429673,2.14052966,2489.9,2489.8,0.4021]
[1729980431278,1.30252966,2489.9,2489.8,0.4021]
[1729980436987,1.70460966,2489.9,2489.8,0.4021]
[1729980437375,1.30252966,2489.9,2489.8,0.4021]